Cogmind - Beta 13 @@@ ROGUE MODE // 2024.05.01 @ 04:55:42 Player: Luca Result: Self-destructed Performance ------------- Evolutions (2) 1000 Regions Visited (5) 1000 Robots Destroyed (19) 95 Value Destroyed (680) 680 Prototype IDs (1) 20 Alien Tech Used (0) 0 Bonus (0) 0 TOTAL SCORE: 2795 Bonus ------- None Cogmind --------- Core Integrity 226/550 Matter 93/300 Energy 49/100 System Corruption 0% Temperature Cool (69) Movement Core (50) Location -8/Materials Parts ------- > --- POWER (1) -------- (None) > --- PROPULSION (2) --- (None) > --- UTILITY (5) ------ Advanced Weight Redist. System > --- WEAPON (3) ------- (None) > --- INVENTORY (5) ---- Improved VTOL Module Improved VTOL Module Improved Shield Generator Peak State ------------ > --- POWER ------------ Light Nuclear Core > --- PROPULSION ------- Improved VTOL Module Improved VTOL Module > --- UTILITY ---------- Small Storage Unit Advanced Weight Redist. System ECM Suite Improved Weapon Shielding Improved Light Armor Plating > --- WEAPON ----------- Particle Gun Particle Gun Ion Cannon > --- INVENTORY -------- Light Ion Engine Aluminum Leg Improved VTOL Module Improved VTOL Module Improved VTOL Module Field Laser High-powered Shotgun Rocket Launcher [Rating: 31] Favorites ----------- Power Light Ion Engine Engine Light Ion Engine Power Core Light Nuclear Core Propulsion Aluminum Leg Leg Aluminum Leg Flight Unit Improved VTOL Module Utility Small Storage Unit Device ECM Suite Storage Small Storage Unit Protection Improved Weapon Shielding Weapon Autogun Energy Gun Small Laser Energy Cannon Ion Cannon Ballistic Gun Autogun Launcher Rocket Launcher Impact Weapon Great Maul Build | -11 -10 -10 -10 -9 -8 ------- Run | Yrd Mat Min Exi Min Mat Slots Evolved 4 | . . . . . 4 Power . | . . . . . . Propulsion . | . . . . . . Utility 3 | . . . . . 3 Weapon 1 | . . . . . 1 Parts Attached 51 | 6 1 . . 14 30 Power 4 | 1 . . . 1 2 Engine 3 | 1 . . . 1 1 Core 1 | . . . . . 1 Reactor . | . . . . . . Propulsion 11 | 2 . . . 3 6 Treads . | . . . . . . Leg 9 | 2 . . . 3 4 Wheel . | . . . . . . Hover . | . . . . . . Flight 2 | . . . . . 2 Utility 7 | 1 1 . . 2 3 Device 4 | . 1 . . 2 1 Storage 1 | 1 . . . . . Processor . | . . . . . . Hackware . | . . . . . . Protection 2 | . . . . . 2 Artifact . | . . . . . . Weapon 29 | 2 . . . 8 19 Energy Gun 13 | 2 . . . 2 9 Energy Cannon 1 | . . . . . 1 Ballistic Gun 10 | . . . . 3 7 Ballistic Cannon . | . . . . . . Launcher 4 | . . . . 3 1 Special Weapon . | . . . . . . Impact Weapon 1 | . . . . . 1 Slashing Weapon . | . . . . . . Piercing Weapon . | . . . . . . Special Melee Weapon . | . . . . . . Unidentified Prototypes 1 | . . . . . 1 Parts Lost 13 | . . . . 3 10 Power 2 | . . . . . 2 Propulsion 3 | . . . . 1 2 Utility 3 | . . . . 1 2 Weapon 5 | . . . . 1 4 Highest Loss Streak 9 | . . . . 2 9 To Critical Strikes 1 | . . . . . 1 Average Slot Usage (%) 88 | . 85 100 100 91 78 Engine 9 | . 14 14 14 14 2 Core 2 | . . . . . 5 Leg 20 | . 28 28 28 24 10 Flight 2 | . . . . . 6 Device 11 | . . 14 14 10 12 Storage 11 | . 14 14 14 14 6 Protection 4 | . . . . . 12 Energy Gun 13 | . 28 28 28 10 4 Energy Cannon 1 | . . . . . 3 Ballistic Gun 8 | . . . . 8 13 Launcher 3 | . . . . 9 . Naked Turns . | . . . . . . Heaviest Build 29 | 11 13 13 13 17 29 Greatest Support 27 | 20 20 20 20 20 27 Greatest Overweight (x) 2 | . . . . 1 2 Average Overweight (x) . | . . . . . . Largest Inventory Capacity 8 | 8 8 8 8 8 8 Average Capacity 7 | 7 8 8 8 8 7 Most Carried 8 | 2 4 4 4 8 8 Average Carried 5 | 1 3 4 4 5 6 Final Capacity 8 | 8 8 8 8 8 5 Final Carried 6 | 2 4 4 4 6 3 Class Distribution -------------------- 64% | Mutant 11% | Sprinter 10% | Tank 9% | Gunner 3% | Scavenger-Tank Dominant Class ---------------- Mutant | -10/Materials Mutant | -10/Mines Mutant | -10/Exiles Mutant | -9/Mines Sprinter | -8/Materials Resources | -11 -10 -10 -10 -9 -8 ----------- Run | Yrd Mat Min Exi Min Mat Matter Collected 876 | 238 22 . . 276 340 Remotely . | . . . . . . Salvage Created 648 | . 86 . . 79 483 Parts 41 | . 4 . . 9 28 Haulers Intercepted 1 | . . . . . 1 Recyclers Shooed . | . . . . . . Parts Field Recycled . | . . . . . . Retrieved Matter . | . . . . . . Parts Self-Destructed . | . . . . . . Prevented . | . . . . . . Kills | -11 -10 -10 -10 -9 -8 ------- Run | Yrd Mat Min Exi Min Mat Combat Hostiles Destroyed 16 | . 2 . . 6 8 Guns 10 | . 2 . . 1 7 Cannons 1 | . . . . . 1 AOE 5 | . . . . 5 . Classes Destroyed 8 | . 1 . . 2 5 Builder 3 | . . . . 1 2 Hauler 1 | . . . . . 1 Mechanic 1 | . . . . . 1 Operator 1 | . . . . . 1 Grunt 11 | . 2 . . 3 6 Hunter 1 | . . . . . 1 Heavy 1 | . . . . . 1 Assembled 3 | . . . . 3 . Best Kill Streak 4 | . 2 . . 4 4 Combat Bots Only 3 | . 2 . . 3 2 Max Kills in Single Turn 2 | . 1 . . 2 2 Gunslinging . | . . . . . . Exploded 2 | . . . . 2 . Melee . | . . . . . . Uniques/NPCs Destroyed . | . . . . . . Combat | -11 -10 -10 -10 -9 -8 -------- Run | Yrd Mat Min Exi Min Mat Hostile Shots Fired 149 | . 8 . . 10 131 Missed 50 | . 2 . . 2 46 Damage Taken 1891 | . 67 . . 468 1356 Core 456 | . 22 . . 110 324 Absorbed by Shields . | . . . . . . Redirected to Shielding 103 | . . . . . 103 Regen/Repaired (Parts) 89 | . . . . . 89 Core Remaining (%) 73 | 100 . . . 47 . Volleys Fired 70 | . 6 . . 22 42 Largest 3 | . 2 . . 2 3 Hottest 190 | . 90 . . 56 190 Shots Fired 134 | . 12 . . 25 97 Gun 102 | . 12 . . 10 80 Cannon 13 | . . . . . 13 Launcher 19 | . . . . 15 4 Special . | . . . . . . Kinetic 55 | . . . . 3 52 Thermal 60 | . 12 . . 7 41 Explosive 19 | . . . . 15 4 Electromagnetic . | . . . . . . Robot Hit Streak 9 | . 6 . . 5 9 Robot Miss Streak 5 | . 2 . . 5 4 Penetration Max 1 | . . . . . 1 Secondary Targets . | . . . . . . Shots Hit Robots 80 | . 8 . . 11 61 Core Hits 52 | . 4 . . 13 35 Critical Kills . | . . . . . . Critical Parts Destroyed . | . . . . . . Critical Strikes . | . . . . . . Melee Attacks . | . . . . . . Impact . | . . . . . . Slashing . | . . . . . . Piercing . | . . . . . . Sneak Attacks . | . . . . . . Combat Hostiles . | . . . . . . Follow-up Attacks . | . . . . . . Damage Inflicted 2096 | . 93 . . 524 1479 Guns 1071 | . 93 . . 59 919 Cannons 186 | . . . . . 186 Explosions 831 | . . . . 457 374 Melee . | . . . . . . Ramming 8 | . . . . 8 . Kinetic 716 | . . . . 27 689 Thermal 541 | . 93 . . 32 416 Explosive 831 | . . . . 457 374 Electromagnetic . | . . . . . . Impact . | . . . . . . Slashing . | . . . . . . Piercing . | . . . . . . Highest Corruption 5 | . . . . 5 . Average Corruption 5 | . . . . 5 . Corruption Purged . | . . . . . . Corruption Blocked . | . . . . . . Effects 5 | . . . . 5 . Message Errors 2 | . . . . 2 . Matter Fused 1 | . . . . 1 . Heat Flow Errors 1 | . . . . 1 . Data Loss (minor) 1 | . . . . 1 . Overload Shots . | . . . . . . Overflow Damage 11 | . . . . . 11 Projectiles . | . . . . . . Explosions 11 | . . . . . 11 Melee . | . . . . . . Knockbacks . | . . . . . . Impact . | . . . . . . Kinetic . | . . . . . . Secondary . | . . . . . . Self-Inflicted Damage 30 | . . . . 30 . Shots 1 | . . . . 1 . Rammed . | . . . . . . Targets Rammed 3 | . . . . 3 . Kicked 3 | . . . . 3 . Crushed . | . . . . . . Highest Temperature 576 | . 210 . . 131 576 Average Temperature 125 | . 106 . . 34 140 Received Heat Transfer 423 | . 36 . . . 387 Effects 11 | . . . . . 11 Shutdowns 1 | . . . . . 1 Interference 3 | . . . . . 3 Short Circuit 1 | . . . . . 1 Damage (major) 6 | . . . . . 6 Siege Activations . | . . . . . . Robots Corrupted . | . . . . . . Combat Hostiles . | . . . . . . Parts Fried . | . . . . . . Impact Corruptions . | . . . . . . Robots Melted . | . . . . . . Combat Hostiles . | . . . . . . Parts Melted 2 | . 1 . . . 1 Heat Transferred 1187 | . 248 . . 75 864 Parts Sabotaged . | . . . . . . Parts Stolen . | . . . . . . Parts Stripped . | . . . . . . Power Chain Reactions . | . . . . . . Alert | -11 -10 -10 -10 -9 -8 ------- Run | Yrd Mat Min Exi Min Mat Peak Influence 368 | . 50 19 . 105 368 Initial 19 | . . 19 . . . Average 49 | . 23 19 . 36 68 Maximum Alert Level 1 | . . . . . 1 Low Security (%) 96 | 100 100 100 . 100 91 Level 1 3 | . . . . . 8 Level 2 . | . . . . . . Level 3 . | . . . . . . Level 4 . | . . . . . . Level 5 . | . . . . . . High Security . | . . . . . . Max Security . | . . . . . . Squads Dispatched 9 | . 1 . . 1 7 Investigation 2 | . . . . . 2 Extermination . | . . . . . . Reinforcement 6 | . 1 . . 1 4 Assault . | . . . . . . Garrison 1 | . . . . . 1 Intercept . | . . . . . . Searches Triggered . | . . . . . . Construction Impeded 2 | . . . . 1 1 Haulers Reinforced . | . . . . . . Active Scanning Responses . | . . . . . . Cargo Convoy Interrupts . | . . . . . . Stealth | -11 -10 -10 -10 -9 -8 --------- Run | Yrd Mat Min Exi Min Mat Distress Signals 3 | . 1 . . . 2 Communications Jammed . | . . . . . . Distress Signals . | . . . . . . Times Spotted 44 | . 2 . . 3 39 Peak Tracking Total 12 | . 1 . . 2 12 Tactical Retreats 7 | . . . . . 7 Traps | -11 -10 -10 -10 -9 -8 ------- Run | Yrd Mat Min Exi Min Mat Traps Triggered 1 | . . . . . 1 Indirectly . | . . . . . . Trap Hack Attempts . | . . . . . . Triggered . | . . . . . . Disarmed . | . . . . . . Reprogrammed . | . . . . . . Reused . | . . . . . . Traps Extracted . | . . . . . . Installed . | . . . . . . Triggered . | . . . . . . Machines | -11 -10 -10 -10 -9 -8 ---------- Run | Yrd Mat Min Exi Min Mat Machines Disabled 4 | . . . . 1 3 Max in Single Turn 1 | . . . . 1 1 Machines Repaired . | . . . . . . Machines Dismantled . | . . . . . . Machines Sabotaged . | . . . . . . Overloaded Fab Kills . | . . . . . . Hacking | -11 -10 -10 -10 -9 -8 --------- Run | Yrd Mat Min Exi Min Mat Machines Accessed 6 | . . . 4 . 2 Terminals . | . . . . . . Fabricators . | . . . . . . Repair Stations 1 | . . . . . 1 Recycling Units 1 | . . . . . 1 Scanalyzers . | . . . . . . Garrison Access . | . . . . . . Total Hacks 59 | . . . 49 . 10 Successful 55 | . . . 49 . 6 Failed 4 | . . . . . 4 Catastrophic . | . . . . . . Database Lockouts . | . . . . . . Manual . | . . . . . . Terminals . | . . . . . . Fabricators . | . . . . . . Repair Stations 4 | . . . . . 4 Recycling Units 6 | . . . . . 6 Scanalyzers . | . . . . . . Garrison Access . | . . . . . . Terminal Hacks 49 | . . . 49 . . Record 49 | . . . 49 . . Fabricator Hacks . | . . . . . . Repair Station Hacks 3 | . . . . . 3 Scan Component 2 | . . . . . 2 Repair 1 | . . . . . 1 Recycling Unit Hacks 3 | . . . . . 3 Report Inventory 1 | . . . . . 1 Retrieve Matter 1 | . . . . . 1 Retrieve Components 1 | . . . . . 1 Scanalyzer . | . . . . . . Garrison Access Hacks . | . . . . . . Unauthorized Hacks . | . . . . . . Terminals . | . . . . . . Fabricators . | . . . . . . Repair Stations . | . . . . . . Recycling Units . | . . . . . . Scanalyzers . | . . . . . . Garrison Access . | . . . . . . Data Cores Recovered . | . . . . . . Used . | . . . . . . Hacking Detections 2 | . . . . . 2 Full Trace Events 1 | . . . . . 1 Feedback Events . | . . . . . . Feedback Blocked . | . . . . . . Robot Schematics Acquired . | . . . . . . Robots Built . | . . . . . . Authchips . | . . . . . . Time . | . . . . . . Total Robot Build Rating . | . . . . . . Part Schematics Acquired . | . . . . . . Parts Built . | . . . . . . Authchips . | . . . . . . Time . | . . . . . . Total Part Build Rating . | . . . . . . Parts Repaired 1 | . . . . . 1 Time 26 | . . . . . 26 Parts Recycled . | . . . . . . Recycled Matter . | . . . . . . Retrieved Matter . | . . . . . . Retrieved Components 6 | . . . . . 6 Parts Scanalyzed . | . . . . . . Part Schematics Acquired . | . . . . . . Parts Damaged . | . . . . . . Bothacking | -11 -10 -10 -10 -9 -8 ------------ Run | Yrd Mat Min Exi Min Mat Used RIF Installer . | . . . . . . Robots Hacked . | . . . . . . Non-combat . | . . . . . . Combat . | . . . . . . Robot Hacks Applied . | . . . . . . Relay Couplers Released . | . . . . . . Fabnet Peak Effective % . | . . . . . . Robots Rewired . | . . . . . . Allies Hacked . | . . . . . . Hacks Repelled . | . . . . . . Allies | -11 -10 -10 -10 -9 -8 -------- Run | Yrd Mat Min Exi Min Mat Total Allies . | . . . . . . Largest Group . | . . . . . . Highest-Rated Group . | . . . . . . Highest-Rated Ally . | . . . . . . Total Orders . | . . . . . . Ally Attacks . | . . . . . . Total Damage . | . . . . . . Kills . | . . . . . . Allies Corrupted . | . . . . . . Allies Melted . | . . . . . . Intel | -11 -10 -10 -10 -9 -8 ------- Run | Yrd Mat Min Exi Min Mat Robot Analysis Total . | . . . . . . Derelict Logs Recovered 1 | . . 1 . . . Drone Launches . | . . . . . . Drone Recoveries . | . . . . . . Exploration | -11 -10 -10 -10 -9 -8 ------------- Run | Yrd Mat Min Exi Min Mat Turns Passed 2986 | 61 173 20 664 958 1110 Spaces Moved 2145 | 45 122 16 551 624 787 Core 5 | 5 . . . . . Treads . | . . . . . . Legs 1676 | 40 122 16 551 624 323 Wheels . | . . . . . . Hover . | . . . . . . Flight 464 | . . . . . 464 Fastest Speed 32 | 50 120 120 120 120 32 Average Speed 111 | 112 120 120 120 134 85 Slowest Speed 260 | 120 120 120 120 190 260 Overloaded Moves . | . . . . . . Propulsion Burnouts . | . . . . . . Robots Hopped 10 | . . . . . 10 Cave-ins Triggered 1 | . . . . 1 . Exploration Rate (%) 41 | 4 21 6 90 83 46 Regions Visited 5 Branch Regions 3 Pre-discovered Areas 2 | . . 1 1 . . Known Exits Taken . | . . . . . . Unknown Exits Taken 5 | 1 1 1 1 1 . Scrap Searched 2 | . . . . 2 . Spaces Dug 15 | . . . . 15 . Terrain Destroyed 188 | . . . . 155 33 Melee . | . . . . . . Projectile 1 | . . . . . 1 AOE 187 | . . . . 155 32 Terrain Rammed . | . . . . . . Walls Destroyed . | . . . . . . Machines Disabled . | . . . . . . Actions | -11 -10 -10 -10 -9 -8 --------- Run | Yrd Mat Min Exi Min Mat Total 2627 | 52 136 17 554 715 1153 Wait 309 | . 6 2 4 45 252 Move 2119 | 44 121 15 550 622 767 Hop 10 | . . . . . 10 Pick Up 26 | 2 2 . . 4 18 Fast Attach 17 | 6 1 . . 1 9 Attach 17 | . . . . 4 13 Detach 9 | . . . . 2 7 Swap 17 | . . . . 9 8 Drop 29 | . . . . 2 27 Fire 70 | . 6 . . 22 42 Melee . | . . . . . . Ram . | . . . . . . Kick 3 | . . . . 3 . Crush . | . . . . . . Escape Stasis 1 | . . . . 1 . Rewire . | . . . . . . Trap . | . . . . . . Miscellaneous . | . . . . . . Route ------- -11/Scrapyard -10/Materials (discovered 2 exits: [*Min x2]) -10/Mines -10/Exiles (discovered 2 exits: [*Min x2]) -9/Mines -8/Materials History --------- Turn | Location | Event 3 | -11/Scrapyard | Discovered new exit (range 15) 62 | -11/Scrapyard | Entered Materials 98 | -10/Materials | Discovered new exit (range 16) 133 | -10/Materials | Discovered new exit (range 16) 182 | -10/Materials | Met 8R-AWN 235 | -10/Materials | Entered Mines 236 | -10/Mines | Followed 8R-AWN into the Mines 239 | -10/Mines | Learned location of Zion (-7) 249 | -10/Mines | Discovered new exit (range 5) 255 | -10/Mines | Entered Exiles 274 | -10/Exiles | Discovered new exit (range 15) 300 | -10/Exiles | Welcomed by 8R-AWN 306 | -10/Exiles | Build established: Mutant 328 | -10/Exiles | Met EX-HEX 398 | -10/Exiles | Met EX-BIN 528 | -10/Exiles | Met EX-DEC 610 | -10/Exiles | Visited The Gauntlet 851 | -10/Exiles | Discovered new exit (range 12) 919 | -10/Exiles | Entered Mines 966 | -9/Mines | Received a Rocket Launcher from a helpful Derelict 1015 | -9/Mines | Assembled infested the area 1296 | -9/Mines | Core integrity fell below 50% 1443 | -9/Mines | Assisted by bots powering up and referring to "LRC-V3" 1630 | -9/Mines | Crushed by falling debris 1739 | -9/Mines | Discovered new exit (range 7) 1877 | -9/Mines | Entered Materials 1877 | -8/Materials | Evolved 4 slots: Utility x3, Weapon x1 1945 | -8/Materials | Repaired Aluminum Leg 2934 | -8/Materials | Garrison activated, responded to threat 2987 | -8/Materials | Core integrity fell below 50% 2987 | -8/Materials | Self-destructed Last Messages --------------- 02966_ Slug penetrates Wall. 02968_ Slug penetrates G-47 Trooper. 02968_ G-47 Trooper destroyed. 02969_ Rocket Launcher destroyed. 02971_ Slug penetrates H-61 Shepherd. 02972_ Minigun destroyed. 02972_ Slug penetrates Wall. 02976_ Slug penetrates H-61 Shepherd. 02976_ Gauss Rifle destroyed. 02976_ Imp. VTOL Module destroyed. 02976_ Critical hit (Blast). 02978_ Slug penetrates Wall. 02981_ H-61 Shepherd destroyed. 02981_ Slug penetrates Wall. 02983_ Wall collapses. 02984_ Critical hit (Burn: +37). 02986_ Penetrated by Slug. 02986_ Critical hit (Destroy). 02986_ Beam Rifle destroyed. 02986_ Critical hit (Burn: +37). Map ----- +----------------------------------------------------+ | #### ############# #????????????????# #?? | | [ #?## ## #?#[#????????????????# #?? | | =!!#?# # ###%###????" ???????+ #?? | | =!!#?# |# # !== #??""" ???????# #?? | | ####?# # # # """ #??????# #?? | | ?????# / / + #??????# #?? | | ?????# # # # " " #??????# #?? | | ?????# # # # "G" #??????# #?? | | ?????# # ### ###? " #??????# #?? | | ?????### ### #?# #???? ??????# #?? | | ???????# #?##########?#! ?????####???????? ??? | | ???????# #??????????#?# ??????????????????????? | | ???????# #########?? ## ??????????????????????? | | ??????## ##= """ #?## # ###???????????????????? | | ??????# # """ #?# ! #???????????????????? | | ??????# # """ ### #???????????????????? | | ??????# + / ???????????????????? | | ??????# # / ###Yh ] = #???????????????????? | | ??????# # #?# = #???????????????????? | | ??????### ##########?# !!g #???????????????????? | | ????????# ???????????? !ggY #???????????????????? | | ????????# ????????????# != ##??????????????????? | | ????????# ????????????# #??????????????????? | | ????????# ????????????# #??????????????????? | | ????????# ???????????## % "!#???????????????????? | | ????????# ???????????#;% @ #???????????????????? | | ????????? ???????????###;#;###???????????????????? | | ??????????????????????# ?##?????????????????????? | | ??????????????????????##?????????????????????????? | | ?????????????????????????????????????????????????? | | ?????????????????????????????????????????????????? | | ?????????????????????????????????????????????????? | | ?????????????????????????????????????????????????? | | ?????????????????????????????????????????????????? | | ?????????????????????????????????????????????????? | | ?????????????????????????????????????????????????? | | ?????????????????????????????????????????????????? | | ?????????????????????????????????????????????????? | | ?????????????????????????????????????????????????? | | ?????????????????????????????????????????????????? | | ?????????????????????????????????????????????????? | | ?????????????????????????????????????????????????? | | ?????????????????????????????????????????????????? | | ?????????????????????????????????????????????????? | | ?????????????????????????????????????????????????? | | ?????????????????????????????????????????????????? | | ?????????????????????????????????????????????????? | | ?????????????????????????????????????????????????? | | ?????????????????????????????????????????????????? | | ?????????????????????????????????????????????????? | +----------------------------------------------------+ Best States ------------- Heat Dissipation 31 Energy Generation 14 Energy Capacity 160 Matter Stores 300 Matter Capacity 300 Sight Range 16 Robot Scan Range 14 Terrain Scan Density 10 ECM Strength 1 Additional Mass Support 9 Armor Coverage 150 Weapon Shielding 66 Evasion (%) 63 Item Schematics ----------------- None Robot Schematics ------------------ None Fabricated ------------ Nothing Alien Tech Used ----------------- None Achievements -------------- I Survived The Infestation Challenges ------------ None Game ------ Seed DamperHeavyExpander Manual? 0 Play Time 00:59:01 Cumulative 25.2 hours Start 2024.04.13 @ 06:43:28 End 2024.05.01 @ 04:55:42 Sessions 3 Manual Loads 0 Difficulty Rogue Special Mode None Game No. 14 Rogue 14 Adventurer 0 Explorer 0 Win Type - Total 0 Types 0/0/0/0/0/0/0/0/0 Lore% 13 Gallery% 19 Achievement% 15 Wizard Run 0 Options --------- Layout 0 ASCII 1 Keyboard 1 Movement Numpad Keybinds 0 Fullscreen 2 Font 18/Terminus Map View 76x50 Zoom Use 0% Tactical HUD 1 Map Filters NONE Filters NONE Steam 1 RUN: 09a727d2-1edc-467c-88db-e6039d400d9e